[Event "*** Titled Tuesday Blitz"]
[Site "Chess.com"]
[Date "2020.04.07"]
[Round "6"]
[White "powermove"]
[Black "MasterKroket"]
[Result "1/2-1/2"]
[WhiteElo "1505"]
[BlackElo "2473"]
[TimeControl "180+1"]
[EndTime "14:08:33 PDT"]
[Termination "Game drawn by repetition"]

1. e4 {[%clk 0:03:00.9]} 1... c5 {[%clk 0:02:59.6]} 2. Nf3 {[%clk 0:03:00.5]}
2... e6 {[%clk 0:03:00]} 3. d4 {[%clk 0:03:00.3]} 3... cxd4 {[%clk 0:03:00.9]}
4. Nxd4 {[%clk 0:03:00.3]} 4... Nc6 {[%clk 0:03:01.3]} 5. Nb5 {[%clk 0:02:58.8]}
5... d6 {[%clk 0:03:00.9]} 6. c4 {[%clk 0:02:58.6]} 6... Nf6 {[%clk 0:03:00.4]}
7. N1c3 {[%clk 0:02:57.8]} 7... a6 {[%clk 0:03:00.8]} 8. Na3 {[%clk 0:02:56.9]}
8... b6 {[%clk 0:03:01.3]} 9. Be2 {[%clk 0:02:53.4]} 9... Bb7 {[%clk 0:03:01.7]}
10. O-O {[%clk 0:02:53.1]} 10... Nb8 {[%clk 0:03:01.8]} 11. f3 {[%clk
0:02:49.1]} 11... Be7 {[%clk 0:03:01.9]} 12. Be3 {[%clk 0:02:48.1]} 12... Nbd7
{[%clk 0:03:01.1]} 13. Qd2 {[%clk 0:02:47.2]} 13... O-O {[%clk 0:03:00.2]} 14.
Nc2 {[%clk 0:02:45.7]} 14... Rc8 {[%clk 0:02:56]} 15. b3 {[%clk 0:02:44.1]}
15... Qc7 {[%clk 0:02:54.3]} 16. a4 {[%clk 0:02:27.1]} 16... d5 {[%clk
0:02:49.4]} 17. exd5 {[%clk 0:02:24.1]} 17... exd5 {[%clk 0:02:49.4]} 18. Rac1
{[%clk 0:02:08.7]} 18... Bd6 {[%clk 0:02:44.5]} 19. f4 {[%clk 0:01:41.1]} 19...
Rfe8 {[%clk 0:02:27.3]} 20. Bd4 {[%clk 0:01:20.4]} 20... Bc5 {[%clk 0:02:18.9]}
21. Bd3 {[%clk 0:01:09.9]} 21... Ne4 {[%clk 0:02:03.1]} 22. Bxe4 {[%clk
0:01:03.2]} 22... dxe4 {[%clk 0:02:02.2]} 23. Ne3 {[%clk 0:00:56.3]} 23... Nf6
{[%clk 0:01:56.6]} 24. Bxf6 {[%clk 0:00:49]} 24... gxf6 {[%clk 0:01:53.6]} 25.
Kh1 {[%clk 0:00:48.4]} 25... Rcd8 {[%clk 0:01:18]} 26. Qe2 {[%clk 0:00:23.7]}
26... Rd3 {[%clk 0:01:05.2]} 27. Ncd5 {[%clk 0:00:22.2]} 27... Qd8 {[%clk
0:00:45.9]} 28. Qg4+ {[%clk 0:00:20.1]} 28... Kh8 {[%clk 0:00:46.2]} 29. Qh4
{[%clk 0:00:17.9]} 29... Bxe3 {[%clk 0:00:44]} 30. Nxf6 {[%clk 0:00:17.3]} 30...
Kg7 {[%clk 0:00:32.3]} 31. Qg5+ {[%clk 0:00:16.8]} 31... Kh8 {[%clk 0:00:26.5]}
32. Qh6 {[%clk 0:00:15.4]} 32... Qxf6 {[%clk 0:00:16.8]} 33. Qxf6+ {[%clk
0:00:15.4]} 33... Kg8 {[%clk 0:00:17.7]} 34. Qg5+ {[%clk 0:00:15.1]} 34... Kh8
{[%clk 0:00:16.9]} 35. Qf6+ {[%clk 0:00:15]} 35... Kg8 {[%clk 0:00:16.3]} 36.
Qg5+ {[%clk 0:00:11.4]} 36... Kh8 {[%clk 0:00:16.2]} 37. Rce1 {[%clk 0:00:10]}
37... Bd4 {[%clk 0:00:15.4]} 38. f5 {[%clk 0:00:09.2]} 38... f6 {[%clk
0:00:13.9]} 39. Qh5 {[%clk 0:00:09.1]} 39... Rg8 {[%clk 0:00:13.9]} 40. Rf4
{[%clk 0:00:08.5]} 40... e3 {[%clk 0:00:11.7]} 41. Rf3 {[%clk 0:00:06.9]} 41...
Bxf3 {[%clk 0:00:11.3]} 42. Qxf3 {[%clk 0:00:06.7]} 42... Rd2 {[%clk 0:00:11.8]}
43. h3 {[%clk 0:00:05.8]} 43... Rf2 {[%clk 0:00:12]} 44. Qe4 {[%clk 0:00:05.4]}
44... e2 {[%clk 0:00:10.6]} 45. Qxd4 {[%clk 0:00:05.4]} 45... Rf1+ {[%clk
0:00:10.9]} 46. Kh2 {[%clk 0:00:05.9]} 46... Rxe1 {[%clk 0:00:11.1]} 47. Qxf6+
{[%clk 0:00:06.5]} 47... Rg7 {[%clk 0:00:11.7]} 48. Qf8+ {[%clk 0:00:07.1]}
48... Rg8 {[%clk 0:00:12.2]} 49. Qf6+ {[%clk 0:00:08]} 49... Rg7 {[%clk
0:00:12.6]} 50. Qf8+ {[%clk 0:00:08.6]} 50... Rg8 {[%clk 0:00:13.1]} 51. Qf6+
{[%clk 0:00:08.8]} 1/2-1/2

[Event "*** Titled Tuesday Blitz"]
[Site "Chess.com"]
[Date "2020.04.07"]
[Round "6"]
[White "BvsN"]
[Black "arminmusovic"]
[Result "1/2-1/2"]
[WhiteElo "2316"]
[BlackElo "2513"]
[TimeControl "180+1"]
[EndTime "14:08:33 PDT"]
[Termination "Game drawn by agreement"]

1. d4 {[%clk 0:03:00.9]} 1... d5 {[%clk 0:03:00.3]} 2. c4 {[%clk 0:03:00.7]}
2... c5 {[%clk 0:03:00.8]} 3. cxd5 {[%clk 0:02:58]} 3... Qxd5 {[%clk 0:03:01.7]}
4. Nf3 {[%clk 0:02:57.7]} 4... cxd4 {[%clk 0:03:02.2]} 5. Nc3 {[%clk 0:02:57.8]}
5... Qa5 {[%clk 0:03:02.5]} 6. Nxd4 {[%clk 0:02:57]} 6... Nf6 {[%clk 0:03:02.7]}
7. g3 {[%clk 0:02:55.4]} 7... e5 {[%clk 0:03:02.7]} 8. Nb3 {[%clk 0:02:55.1]}
8... Qc7 {[%clk 0:03:03.2]} 9. Bg2 {[%clk 0:02:55.5]} 9... Bb4 {[%clk
0:03:03.8]} 10. O-O {[%clk 0:02:54.7]} 10... Bxc3 {[%clk 0:03:04.4]} 11. bxc3
{[%clk 0:02:54.1]} 11... O-O {[%clk 0:03:05.1]} 12. Bg5 {[%clk 0:02:51.6]} 12...
Qe7 {[%clk 0:03:02.2]} 13. Na5 {[%clk 0:02:40.4]} 13... Nbd7 {[%clk 0:02:49.6]}
14. Nxb7 {[%clk 0:02:31.5]} 14... Bxb7 {[%clk 0:02:29.6]} 15. Bxb7 {[%clk
0:02:30.7]} 15... Rad8 {[%clk 0:02:25.6]} 16. Qc2 {[%clk 0:02:22.7]} 16... Nc5
{[%clk 0:02:19.2]} 17. Bg2 {[%clk 0:02:22]} 17... Rc8 {[%clk 0:02:07.2]} 18.
Rfd1 {[%clk 0:02:18.1]} 18... h6 {[%clk 0:02:06.7]} 19. Be3 {[%clk 0:02:16.8]}
19... Rc7 {[%clk 0:02:03.7]} 20. Rd2 {[%clk 0:02:09.3]} 20... Ne6 {[%clk
0:02:01.5]} 21. Rad1 {[%clk 0:02:04.3]} 21... Rfc8 {[%clk 0:02:01.6]} 22. Qa4
{[%clk 0:02:00.3]} 22... Rxc3 {[%clk 0:01:50]} 23. Qxa7 {[%clk 0:01:57.2]} 23...
Qxa7 {[%clk 0:01:44.6]} 24. Bxa7 {[%clk 0:01:56.9]} 24... Ra3 {[%clk 0:01:38.7]}
25. Be3 {[%clk 0:01:49.2]} 25... Ng4 {[%clk 0:01:32.7]} 26. Bb6 {[%clk
0:01:46.6]} 26... Rb8 {[%clk 0:01:25.1]} 27. h3 {[%clk 0:01:42.3]} 27... Rxb6
{[%clk 0:01:15.6]} 28. hxg4 {[%clk 0:01:41.6]} 28... g6 {[%clk 0:01:01]} 29. Bd5
{[%clk 0:01:39.2]} 29... Kg7 {[%clk 0:00:39.5]} 30. Kg2 {[%clk 0:01:38.9]} 30...
Nd4 {[%clk 0:00:36.8]} 31. e3 {[%clk 0:01:34.4]} 31... Ne6 {[%clk 0:00:37.2]}
32. Bc4 {[%clk 0:01:31.9]} 32... Ng5 {[%clk 0:00:36.7]} 33. Rd7 {[%clk
0:01:28.4]} 33... Rc3 {[%clk 0:00:36.9]} 34. Bb3 {[%clk 0:01:24.9]} 34... Rf6
{[%clk 0:00:36.9]} 35. R1d2 {[%clk 0:01:07.7]} 35... e4 {[%clk 0:00:32.4]} 36.
R7d6 {[%clk 0:00:58.8]} 36... Rc6 {[%clk 0:00:22.9]} 37. Rxf6 {[%clk 0:00:56.1]}
37... Rxf6 {[%clk 0:00:19.2]} 38. Kf1 {[%clk 0:00:46.2]} 38... Rc6 {[%clk
0:00:17.8]} 39. Rc2 {[%clk 0:00:45.4]} 39... Rd6 {[%clk 0:00:17.6]} 40. Rb2
{[%clk 0:00:39]} 40... Nf3 {[%clk 0:00:16.3]} 41. Ke2 {[%clk 0:00:29.6]} 41...
f5 {[%clk 0:00:15.4]} 42. gxf5 {[%clk 0:00:28.8]} 42... gxf5 {[%clk 0:00:16.3]}
43. a4 {[%clk 0:00:28.4]} 43... Rc6 {[%clk 0:00:16.4]} 44. Rc2 {[%clk 0:00:25]}
44... Rb6 {[%clk 0:00:15]} 45. Rc3 {[%clk 0:00:24.3]} 45... Ng1+ {[%clk
0:00:13.7]} 46. Kd1 {[%clk 0:00:23]} 46... Rd6+ {[%clk 0:00:12.6]} 47. Ke1
{[%clk 0:00:17.6]} 47... Nf3+ {[%clk 0:00:12.1]} 48. Kf1 {[%clk 0:00:17.9]}
48... Rd2 {[%clk 0:00:11.1]} 49. Rc1 {[%clk 0:00:16.8]} 49... Rb2 {[%clk
0:00:10.4]} 50. Bd1 {[%clk 0:00:15.5]} 1/2-1/2

[Event "*** Titled Tuesday Blitz"]
[Site "Chess.com"]
[Date "2020.04.07"]
[Round "6"]
[White "erlesfar"]
[Black "Cocaino74"]
[Result "0-1"]
[WhiteElo "2012"]
[BlackElo "2259"]
[TimeControl "180+1"]
[EndTime "14:08:34 PDT"]
[Termination "Cocaino74 won by checkmate"]

1. e4 {[%clk 0:02:20.4]} 1... c5 {[%clk 0:02:57.9]} 2. d4 {[%clk 0:02:19.7]}
2... cxd4 {[%clk 0:02:58.8]} 3. c3 {[%clk 0:02:19.7]} 3... Nf6 {[%clk
0:02:59.3]} 4. e5 {[%clk 0:02:19.5]} 4... Nd5 {[%clk 0:02:59.9]} 5. Nf3 {[%clk
0:02:18.5]} 5... d6 {[%clk 0:03:00.3]} 6. Bc4 {[%clk 0:02:17.8]} 6... Nb6 {[%clk
0:02:59.5]} 7. Bb3 {[%clk 0:02:17.7]} 7... e6 {[%clk 0:02:33.5]} 8. exd6 {[%clk
0:02:15.4]} 8... dxc3 {[%clk 0:02:29.6]} 9. Nxc3 {[%clk 0:02:14.8]} 9... Bxd6
{[%clk 0:02:22.3]} 10. O-O {[%clk 0:02:13.5]} 10... Na6 {[%clk 0:02:18.3]} 11.
Qe2 {[%clk 0:02:10.3]} 11... Nc5 {[%clk 0:02:15.6]} 12. Bc2 {[%clk 0:02:00.9]}
12... Bd7 {[%clk 0:01:47.9]} 13. Rd1 {[%clk 0:01:59.9]} 13... Qe7 {[%clk
0:01:38.1]} 14. b4 {[%clk 0:01:56.2]} 14... Nca4 {[%clk 0:01:34]} 15. Nxa4
{[%clk 0:01:49.5]} 15... Nxa4 {[%clk 0:01:27.7]} 16. Bxa4 {[%clk 0:01:34.1]}
16... Bxa4 {[%clk 0:01:27.1]} 17. Rd4 {[%clk 0:01:34.1]} 17... a6 {[%clk
0:01:13.5]} 18. Bb2 {[%clk 0:01:30.1]} 18... Rc8 {[%clk 0:00:50.1]} 19. Rf4
{[%clk 0:01:08.4]} 19... Bxf4 {[%clk 0:00:46.2]} 20. Qe4 {[%clk 0:01:01.3]}
20... Bd6 {[%clk 0:00:32.7]} 21. Bxg7 {[%clk 0:00:54.6]} 21... Bc6 {[%clk
0:00:33.4]} 22. Qd4 {[%clk 0:00:49.5]} 22... Rg8 {[%clk 0:00:29.5]} 23. Bf6
{[%clk 0:00:46.2]} 23... Bxf3 {[%clk 0:00:20.3]} 24. Bxe7 {[%clk 0:00:44.7]}
24... Rxg2+ {[%clk 0:00:20.4]} 25. Kf1 {[%clk 0:00:43.1]} 25... Rxh2 {[%clk
0:00:18.6]} 26. Ke1 {[%clk 0:00:42.7]} 26... Kxe7 {[%clk 0:00:15.7]} 27. Kd2
{[%clk 0:00:38.9]} 27... Bd5 {[%clk 0:00:06.4]} 28. Rc1 {[%clk 0:00:33.3]} 28...
Rxc1 {[%clk 0:00:05.4]} 29. Kxc1 {[%clk 0:00:33.3]} 29... h5 {[%clk 0:00:04.8]}
30. Qg7 {[%clk 0:00:25.2]} 30... Rh1+ {[%clk 0:00:03.8]} 31. Kb2 {[%clk
0:00:24.2]} 31... Rh2 {[%clk 0:00:04.2]} 32. Qg5+ {[%clk 0:00:23.7]} 32... Kd7
{[%clk 0:00:04]} 33. Qf6 {[%clk 0:00:23.4]} 33... Ke8 {[%clk 0:00:04.5]} 34. b5
{[%clk 0:00:20.6]} 34... axb5 {[%clk 0:00:04.2]} 35. Qh8+ {[%clk 0:00:19.3]}
35... Ke7 {[%clk 0:00:04.2]} 36. Qd4 {[%clk 0:00:19]} 36... h4 {[%clk
0:00:04.5]} 37. Kc3 {[%clk 0:00:16.2]} 37... h3 {[%clk 0:00:04.9]} 38. Qe3
{[%clk 0:00:16.3]} 38... Rh1 {[%clk 0:00:04.6]} 39. Qg5+ {[%clk 0:00:16]} 39...
Ke8 {[%clk 0:00:04.7]} 40. Qg8+ {[%clk 0:00:15.8]} 40... Ke7 {[%clk 0:00:05.3]}
41. Qg5+ {[%clk 0:00:15.9]} 41... Kd7 {[%clk 0:00:05.6]} 42. Qf6 {[%clk
0:00:15.8]} 42... Be7 {[%clk 0:00:04.2]} 43. Qe5 {[%clk 0:00:13.6]} 43... h2
{[%clk 0:00:03.3]} 44. Qb8 {[%clk 0:00:13.2]} 44... Rc1+ {[%clk 0:00:03.4]} 45.
Kd2 {[%clk 0:00:13.3]} 45... h1=Q {[%clk 0:00:03.9]} 46. a4 {[%clk 0:00:12.1]}
46... Qe1+ {[%clk 0:00:03.5]} 47. Kd3 {[%clk 0:00:11.8]} 47... Be4+ {[%clk
0:00:03.8]} 48. Kd4 {[%clk 0:00:11.6]} 48... Bc5+ {[%clk 0:00:04.5]} 49. Ke5
{[%clk 0:00:11.5]} 49... f6+ {[%clk 0:00:03.6]} 50. Kxf6 {[%clk 0:00:11.4]}
50... Qxf2+ {[%clk 0:00:04.3]} 51. Kg7 {[%clk 0:00:11.6]} 51... Rg1+ {[%clk
0:00:04.5]} 52. Kh8 {[%clk 0:00:11.4]} 52... Qh4# {[%clk 0:00:05.4]} 0-1

[Event "*** Titled Tuesday Blitz"]
[Site "Chess.com"]
[Date "2020.04.07"]
[Round "6"]
[White "wnstop"]
[Black "GuerrieroFromLevant"]
[Result "1-0"]
[WhiteElo "2588"]
[BlackElo "2327"]
[TimeControl "180+1"]
[EndTime "14:08:41 PDT"]
[Termination "wnstop won by resignation"]

1. e4 {[%clk 0:02:59.5]} 1... e6 {[%clk 0:02:57.8]} 2. d4 {[%clk 0:02:59.5]}
2... d5 {[%clk 0:02:56.5]} 3. Nd2 {[%clk 0:03:00]} 3... c5 {[%clk 0:02:55.8]} 4.
exd5 {[%clk 0:02:59.8]} 4... exd5 {[%clk 0:02:56]} 5. Ngf3 {[%clk 0:02:59.6]}
5... a6 {[%clk 0:02:54.2]} 6. Be2 {[%clk 0:02:57.8]} 6... Nf6 {[%clk 0:02:53.7]}
7. O-O {[%clk 0:02:57.9]} 7... Be7 {[%clk 0:02:51.6]} 8. dxc5 {[%clk 0:02:57.7]}
8... Bxc5 {[%clk 0:02:52.5]} 9. Nb3 {[%clk 0:02:57.8]} 9... Bb6 {[%clk
0:02:52.6]} 10. Nfd4 {[%clk 0:02:45.9]} 10... O-O {[%clk 0:02:51.2]} 11. Bf3
{[%clk 0:02:45.1]} 11... Nc6 {[%clk 0:02:48.4]} 12. Bf4 {[%clk 0:02:42.7]} 12...
Re8 {[%clk 0:02:43.8]} 13. c3 {[%clk 0:02:30.8]} 13... Ne4 {[%clk 0:02:41.1]}
14. Re1 {[%clk 0:02:22.9]} 14... Qf6 {[%clk 0:02:36.8]} 15. Be3 {[%clk
0:02:14.5]} 15... Ne5 {[%clk 0:02:32.7]} 16. Nd2 {[%clk 0:02:02]} 16... Nxd2
{[%clk 0:02:23.1]} 17. Qxd2 {[%clk 0:01:57.7]} 17... Nc4 {[%clk 0:02:07.7]} 18.
Bg5 {[%clk 0:01:43.4]} 18... Bd7 {[%clk 0:01:52.7]} 19. Qf4 {[%clk 0:01:16.3]}
19... Qxf4 {[%clk 0:01:50]} 20. Bxf4 {[%clk 0:01:17.2]} 20... Bxd4 {[%clk
0:01:35.8]} 21. cxd4 {[%clk 0:01:15.6]} 21... Bc6 {[%clk 0:01:36.1]} 22. b3
{[%clk 0:01:14.4]} 22... Nb2 {[%clk 0:01:35.3]} 23. Be3 {[%clk 0:01:07.1]} 23...
Nd3 {[%clk 0:01:30.8]} 24. Red1 {[%clk 0:01:07]} 24... Nb4 {[%clk 0:01:31.2]}
25. Rd2 {[%clk 0:00:51.6]} 25... a5 {[%clk 0:01:28.9]} 26. a3 {[%clk 0:00:49.8]}
26... Na6 {[%clk 0:01:28.3]} 27. Rc1 {[%clk 0:00:49.7]} 27... Nc7 {[%clk
0:01:25.5]} 28. h4 {[%clk 0:00:48.5]} 28... Nb5 {[%clk 0:01:21]} 29. a4 {[%clk
0:00:46]} 29... Nd6 {[%clk 0:01:21.5]} 30. h5 {[%clk 0:00:41.3]} 30... h6 {[%clk
0:01:21]} 31. Rdc2 {[%clk 0:00:41.1]} 31... Nf5 {[%clk 0:01:15.7]} 32. Rc3
{[%clk 0:00:37.3]} 32... Re7 {[%clk 0:01:10.1]} 33. Bg4 {[%clk 0:00:31]} 33...
Nd6 {[%clk 0:01:01.5]} 34. Bf4 {[%clk 0:00:25.9]} 34... Ne4 {[%clk 0:01:00.8]}
35. Re3 {[%clk 0:00:25.4]} 35... Rae8 {[%clk 0:00:59.9]} 36. Rce1 {[%clk
0:00:24.6]} 36... f5 {[%clk 0:00:33]} 37. Bxf5 {[%clk 0:00:16.7]} 37... Rf7
{[%clk 0:00:33.5]} 38. g4 {[%clk 0:00:16.3]} 38... Ref8 {[%clk 0:00:30.2]} 39.
f3 {[%clk 0:00:15]} 39... Nf6 {[%clk 0:00:20.7]} 40. Be6 {[%clk 0:00:14.8]}
40... Kh7 {[%clk 0:00:20.8]} 41. Bxf7 {[%clk 0:00:14.8]} 41... Rxf7 {[%clk
0:00:21.7]} 42. Re7 {[%clk 0:00:14.4]} 42... Rf8 {[%clk 0:00:20.5]} 43. Be5
{[%clk 0:00:14.8]} 43... Kg8 {[%clk 0:00:20.2]} 44. Kg2 {[%clk 0:00:14.8]} 44...
Ne8 {[%clk 0:00:20.2]} 45. Bg3 {[%clk 0:00:10.5]} 45... Kh7 {[%clk 0:00:19.9]}
46. R1e6 {[%clk 0:00:10.9]} 46... Kg8 {[%clk 0:00:19.6]} 47. Rg6 {[%clk
0:00:11]} 47... Kh7 {[%clk 0:00:15.9]} 48. Be5 {[%clk 0:00:11]} 48... Rg8 {[%clk
0:00:16.4]} 49. f4 {[%clk 0:00:10.2]} 49... Rf8 {[%clk 0:00:12.4]} 50. Bxg7
{[%clk 0:00:08.5]} 50... Rxf4 {[%clk 0:00:12.7]} 51. Be5+ {[%clk 0:00:08.8]} 1-0

[Event "*** Titled Tuesday Blitz"]
[Site "Chess.com"]
[Date "2020.04.07"]
[Round "6"]
[White "WelshTiger"]
[Black "Grandmaster2B"]
[Result "1-0"]
[WhiteElo "2418"]
[BlackElo "2537"]
[TimeControl "180+1"]
[EndTime "14:08:46 PDT"]
[Termination "WelshTiger won on time"]

1. e4 {[%clk 0:03:00.9]} 1... c5 {[%clk 0:02:58.9]} 2. Nf3 {[%clk 0:03:00.5]}
2... d6 {[%clk 0:02:58.8]} 3. d4 {[%clk 0:02:59.9]} 3... cxd4 {[%clk 0:02:59.7]}
4. Nxd4 {[%clk 0:03:00.5]} 4... Nf6 {[%clk 0:03:00.4]} 5. Nc3 {[%clk 0:03:01]}
5... a6 {[%clk 0:03:00.9]} 6. Be2 {[%clk 0:02:59.9]} 6... e5 {[%clk 0:03:01]} 7.
Nf3 {[%clk 0:03:00.1]} 7... Be6 {[%clk 0:03:00.2]} 8. Bg5 {[%clk 0:02:58.5]}
8... Be7 {[%clk 0:02:59]} 9. Bxf6 {[%clk 0:02:58.5]} 9... Bxf6 {[%clk
0:02:59.9]} 10. Nd5 {[%clk 0:02:58.5]} 10... Nd7 {[%clk 0:02:56.1]} 11. O-O
{[%clk 0:02:46.9]} 11... O-O {[%clk 0:02:54.2]} 12. Bc4 {[%clk 0:02:45.6]} 12...
b5 {[%clk 0:02:50.8]} 13. Bb3 {[%clk 0:02:45.2]} 13... Rc8 {[%clk 0:02:45.4]}
14. a4 {[%clk 0:02:42]} 14... bxa4 {[%clk 0:02:39.7]} 15. Bxa4 {[%clk 0:02:35]}
15... Bxd5 {[%clk 0:02:33.3]} 16. Qxd5 {[%clk 0:02:31.5]} 16... Nb6 {[%clk
0:02:32]} 17. Qd3 {[%clk 0:02:24.7]} 17... Qc7 {[%clk 0:02:26]} 18. Bb3 {[%clk
0:02:16.5]} 18... Nd7 {[%clk 0:02:08.3]} 19. Rxa6 {[%clk 0:02:11.4]} 19... Nc5
{[%clk 0:02:08.2]} 20. Qxd6 {[%clk 0:02:09.8]} 20... Nxa6 {[%clk 0:02:06.7]} 21.
Qxa6 {[%clk 0:02:09.8]} 21... Ra8 {[%clk 0:02:05.5]} 22. Qe2 {[%clk 0:02:02.1]}
22... Rab8 {[%clk 0:02:05.1]} 23. Nd2 {[%clk 0:02:00.3]} 23... Rfd8 {[%clk
0:02:04.4]} 24. Nc4 {[%clk 0:02:00.2]} 24... Qc5 {[%clk 0:02:01.8]} 25. Ne3
{[%clk 0:01:56.2]} 25... g6 {[%clk 0:01:49.6]} 26. Nd5 {[%clk 0:01:55.4]} 26...
Bg7 {[%clk 0:01:49.3]} 27. g3 {[%clk 0:01:42.2]} 27... Kh8 {[%clk 0:01:46]} 28.
Rd1 {[%clk 0:01:30.8]} 28... Rf8 {[%clk 0:01:43.7]} 29. Kg2 {[%clk 0:01:25.5]}
29... f5 {[%clk 0:01:35.8]} 30. f3 {[%clk 0:01:25.7]} 30... fxe4 {[%clk
0:01:25]} 31. Qxe4 {[%clk 0:01:25.5]} 31... Rb7 {[%clk 0:01:19.7]} 32. h4 {[%clk
0:01:19.3]} 32... Rbf7 {[%clk 0:01:12]} 33. Rd3 {[%clk 0:01:17.9]} 33... Ra7
{[%clk 0:01:00.8]} 34. Rc3 {[%clk 0:01:16.4]} 34... Qd4 {[%clk 0:00:58.2]} 35.
Qxd4 {[%clk 0:01:05.1]} 35... exd4 {[%clk 0:00:59.1]} 36. Rc6 {[%clk 0:00:56.1]}
36... Re8 {[%clk 0:00:56.9]} 37. Nf4 {[%clk 0:00:53.5]} 37... Ra1 {[%clk
0:00:51.5]} 38. Ne6 {[%clk 0:00:51.3]} 38... Bf6 {[%clk 0:00:38]} 39. h5 {[%clk
0:00:51.1]} 39... gxh5 {[%clk 0:00:37.2]} 40. Nf4 {[%clk 0:00:44.9]} 40... Be5
{[%clk 0:00:37.1]} 41. Nxh5 {[%clk 0:00:34.3]} 41... Rb1 {[%clk 0:00:37.6]} 42.
Bc4 {[%clk 0:00:26.3]} 42... Rxb2 {[%clk 0:00:24]} 43. Bd3 {[%clk 0:00:25.4]}
43... Rb7 {[%clk 0:00:22.5]} 44. f4 {[%clk 0:00:25.4]} 44... Bg7 {[%clk
0:00:17.3]} 45. Kf3 {[%clk 0:00:23.3]} 45... Re3+ {[%clk 0:00:13.7]} 46. Kg4
{[%clk 0:00:23.5]} 46... Ree7 {[%clk 0:00:08.6]} 47. f5 {[%clk 0:00:23.7]} 47...
Rf7 {[%clk 0:00:08]} 48. f6 {[%clk 0:00:22.1]} 48... Bf8 {[%clk 0:00:08.3]} 49.
Kf5 {[%clk 0:00:21.2]} 49... Rbc7 {[%clk 0:00:06.1]} 50. Rxc7 {[%clk 0:00:20.9]}
50... Rxc7 {[%clk 0:00:07]} 51. Nf4 {[%clk 0:00:21.6]} 51... Bh6 {[%clk
0:00:04.5]} 52. Ne6 {[%clk 0:00:21.8]} 52... Rf7 {[%clk 0:00:04.7]} 53. g4
{[%clk 0:00:22]} 53... Be3 {[%clk 0:00:03.1]} 54. g5 {[%clk 0:00:22.4]} 54...
Bf2 {[%clk 0:00:02]} 55. Nd8 {[%clk 0:00:22.5]} 55... Rf8 {[%clk 0:00:02.3]} 56.
Ne6 {[%clk 0:00:21.8]} 56... Rf7 {[%clk 0:00:02]} 57. Nf4 {[%clk 0:00:22.3]}
57... Be3 {[%clk 0:00:01.3]} 58. g6 {[%clk 0:00:22.6]} 1-0

[Event "*** Titled Tuesday Blitz"]
[Site "Chess.com"]
[Date "2020.04.07"]
[Round "6"]
[White "pedroholly22"]
[Black "maxip32"]
[Result "1-0"]
[WhiteElo "2333"]
[BlackElo "2467"]
[TimeControl "180+1"]
[EndTime "14:08:49 PDT"]
[Termination "pedroholly22 won on time"]

1. e4 {[%clk 0:03:00.9]} 1... c5 {[%clk 0:02:59.3]} 2. Nf3 {[%clk 0:02:57.5]}
2... d6 {[%clk 0:02:59.2]} 3. d4 {[%clk 0:02:57.8]} 3... cxd4 {[%clk 0:03:00.1]}
4. Nxd4 {[%clk 0:02:56.8]} 4... Nf6 {[%clk 0:03:00.5]} 5. Nc3 {[%clk 0:02:56.2]}
5... a6 {[%clk 0:03:00.9]} 6. Rg1 {[%clk 0:02:55.6]} 6... e5 {[%clk 0:02:36.7]}
7. Nb3 {[%clk 0:02:54]} 7... h5 {[%clk 0:02:35.2]} 8. h3 {[%clk 0:02:51.7]} 8...
Be7 {[%clk 0:02:31.1]} 9. Be3 {[%clk 0:02:49.1]} 9... Be6 {[%clk 0:02:30.4]} 10.
Qd2 {[%clk 0:02:44.4]} 10... Nc6 {[%clk 0:02:07]} 11. O-O-O {[%clk 0:02:42.1]}
11... Rc8 {[%clk 0:02:05.4]} 12. Be2 {[%clk 0:02:41.8]} 12... Na5 {[%clk
0:02:01.9]} 13. Kb1 {[%clk 0:02:38.2]} 13... Nc4 {[%clk 0:01:57.8]} 14. Bxc4
{[%clk 0:02:37.6]} 14... Rxc4 {[%clk 0:01:58.7]} 15. f3 {[%clk 0:02:24]} 15...
h4 {[%clk 0:01:50.2]} 16. g4 {[%clk 0:02:23.2]} 16... hxg3 {[%clk 0:01:49]} 17.
Rxg3 {[%clk 0:02:23.3]} 17... g6 {[%clk 0:01:38.9]} 18. Bg5 {[%clk 0:02:15.6]}
18... Nh5 {[%clk 0:01:35]} 19. Bxe7 {[%clk 0:02:10.5]} 19... Qxe7 {[%clk
0:01:35.9]} 20. Nd5 {[%clk 0:01:59.1]} 20... Bxd5 {[%clk 0:01:25.5]} 21. Qxd5
{[%clk 0:01:58.2]} 21... Rc6 {[%clk 0:01:26.4]} 22. Rg4 {[%clk 0:01:46]} 22...
Nf4 {[%clk 0:01:25.3]} 23. Rxf4 {[%clk 0:01:45.8]} 23... exf4 {[%clk 0:01:26.2]}
24. Na5 {[%clk 0:01:31.3]} 24... Rc5 {[%clk 0:01:07.8]} 25. Qd4 {[%clk
0:00:57.7]} 25... O-O {[%clk 0:01:02]} 26. Nc4 {[%clk 0:00:53.3]} 26... Rd8
{[%clk 0:00:46.7]} 27. Nxd6 {[%clk 0:00:51.2]} 27... Re5 {[%clk 0:00:43.5]} 28.
Nf5 {[%clk 0:00:41.3]} 28... Rxd4 {[%clk 0:00:33.5]} 29. Nxe7+ {[%clk 0:00:41]}
29... Rxe7 {[%clk 0:00:33.6]} 30. Rxd4 {[%clk 0:00:41.9]} 30... Re5 {[%clk
0:00:29.1]} 31. c4 {[%clk 0:00:38.7]} 31... Rh5 {[%clk 0:00:28.6]} 32. e5 {[%clk
0:00:38.9]} 32... g5 {[%clk 0:00:28.7]} 33. Rd8+ {[%clk 0:00:36.2]} 33... Kg7
{[%clk 0:00:28.4]} 34. Rd7 {[%clk 0:00:36.6]} 34... Kg6 {[%clk 0:00:28.8]} 35.
Rxb7 {[%clk 0:00:36.3]} 35... Rxh3 {[%clk 0:00:29.3]} 36. c5 {[%clk 0:00:36.5]}
36... g4 {[%clk 0:00:26.6]} 37. fxg4 {[%clk 0:00:27.6]} 37... f3 {[%clk
0:00:26.6]} 38. Rb6+ {[%clk 0:00:27.6]} 38... Kg5 {[%clk 0:00:22.2]} 39. Rf6
{[%clk 0:00:27.4]} 39... Kxg4 {[%clk 0:00:22.3]} 40. c6 {[%clk 0:00:25.6]} 40...
Rh8 {[%clk 0:00:20.9]} 41. Rxf7 {[%clk 0:00:21.7]} 41... Rc8 {[%clk 0:00:19.3]}
42. c7 {[%clk 0:00:20.5]} 42... Kg3 {[%clk 0:00:19.6]} 43. e6 {[%clk 0:00:18.9]}
43... f2 {[%clk 0:00:19.5]} 44. e7 {[%clk 0:00:18.7]} 44... Kg2 {[%clk
0:00:18.9]} 45. Rg7+ {[%clk 0:00:18.4]} 45... Kh2 {[%clk 0:00:19.1]} 46. Rf7
{[%clk 0:00:18.1]} 46... Kg2 {[%clk 0:00:19.1]} 47. Rg7+ {[%clk 0:00:18.1]}
47... Kf3 {[%clk 0:00:18.2]} 48. Rf7+ {[%clk 0:00:10.5]} 48... Ke2 {[%clk
0:00:18.4]} 49. b4 {[%clk 0:00:10.4]} 49... f1=Q+ {[%clk 0:00:16.1]} 50. Rxf1
{[%clk 0:00:10.4]} 50... Kxf1 {[%clk 0:00:17]} 51. a4 {[%clk 0:00:11.3]} 51...
Ke2 {[%clk 0:00:13.3]} 52. b5 {[%clk 0:00:11.6]} 52... axb5 {[%clk 0:00:14.2]}
53. axb5 {[%clk 0:00:12.5]} 1-0